bitfinex/quotes_ETHUSD_20260108
["timestamp","ask_amount","ask_price","bid_price","bid_amount"]
[1767891137441,7.14647532,3115.2,3114.1,0.94380845]
[1767891138015,0.002,3114.9,3114.1,0.94380845]
[1767891139345,0.002,3114.9,3114.3,0.94380845]
[1767891139540,0.002,3115.2,3114.7,0.94380845]
[1767891139983,0.90625777,3116.5,3114.7,0.94380845]
[1767891140273,4.0508307,3116.4,3114.7,0.94380845]
[1767891140462,0.04011167,3116.3,3114.7,0.94380845]
[1767891141269,3.20903664,3116.2,3114.9,0.94380845]
[1767891141563,0.64581335,3116.2,3115.1,0.94380845]
[1767891141737,0.04011424,3116.1,3115.1,0.94380845]
[1767891142438,0.64581335,3116.2,3115.1,0.94380845]
[1767891142839,3.2088307,3116.4,3115.1,0.94380845]
[1767891142840,4.0508307,3116.4,3115.1,0.94380845]
[1767891143567,0.04011167,3116.3,3115.0,0.47787315]
[1767891143876,0.04011167,3116.3,3114.5,3.210784]
[1767891143877,0.94436944,3116.3,3114.5,3.210784]
[1767891144035,0.90425777,3116.1,3114.7,3.21052529]
[1767891144236,0.04011553,3116.0,3114.7,3.21052529]
[1767891144437,0.90425777,3116.1,3114.7,0.94380845]
[1767891144636,0.90425777,3116.1,3114.6,0.41545925]
[1767891144637,0.842,3115.9,3115.1,3.21016884]
[1767891145072,0.842,3115.9,3115.0,4.15403217]
[1767891145366,0.88211424,3116.1,3115.0,4.89047533]
[1767891145562,0.88211424,3116.1,3115.1,3.21015184]
[1767891145874,3.20924261,3116.0,3115.1,3.21015184]
[1767891146231,3.20924261,3116.0,3115.0,4.89048775]
[1767891148463,6.45860075,3116.0,3115.0,1.68025161]
[1767891148666,0.73006007,3115.9,3115.0,0.94380845]
[1767891148871,0.77017689,3115.9,3115.0,0.94380845]
[1767891149071,0.77017689,3115.9,3114.6,0.94380845]
[1767891149291,1.67443466,3115.9,3114.3,0.842]
[1767891149590,0.80929199,3115.8,3114.6,3.21068216]
[1767891149782,0.80929199,3115.8,3114.4,4.1546926]
[1767891149783,6.45922263,3115.7,3114.5,6.42157648]
[1767891150104,6.41910324,3115.7,3114.5,4.15459669]
[1767891150264,6.41910324,3115.7,3114.5,7.36538493]
[1767891150265,3.20955162,3115.7,3114.5,7.36538493]
[1767891150596,3.24967101,3115.7,3114.5,7.36538493]
[1767891150793,3.24967101,3115.7,3114.6,0.73653849]
[1767891151394,6.45922263,3115.7,3114.6,0.73653849]
[1767891151584,6.45922263,3115.7,3113.4,0.08394408]
[1767891151585,0.842,3115.6,3114.4,3.21084]
[1767891151910,6.41972138,3115.4,3114.2,3.21109755]
[1767891152198,0.94438231,3115.3,3113.8,0.94380845]
[1767891152370,3.53975563,3115.1,3113.8,0.94380845]
[1767891152699,0.842,3115.0,3114.8,0.001]
[1767891152871,0.842,3115.0,3113.8,0.94380845]
[1767891153074,0.04012712,3115.1,3113.8,0.94380845]
[1767891153396,0.842,3115.0,3113.8,0.94380845]
[1767891153777,3.21037593,3114.9,3114.0,0.90398445]
[1767891153968,0.726271,3114.8,3114.0,0.90398445]
[1767891154371,0.726271,3114.8,3113.7,4.11655901]
[1767891154863,0.726271,3114.8,3113.7,0.90498445]
[1767891155995,6.42116414,3114.7,3113.7,0.90498445]
[1767891156190,6.42116414,3114.7,3113.7,0.001]
[1767891156497,1.13290159,3114.6,3113.8,0.90398445]
[1767891156796,4.05258207,3114.7,3113.8,0.90398445]
[1767891156998,3.21058207,3114.7,3113.8,0.90398445]
[1767891158063,3.21027287,3115.0,3113.9,0.90398445]
[1767891158295,0.88212969,3114.9,3113.9,0.90398445]
[1767891158889,0.842,3114.9,3113.9,0.90398445]
[1767891159090,0.72625457,3114.8,3113.9,0.90398445]
[1767891160007,6.42137032,3114.6,3113.9,0.90398445]
[1767891160486,3.21068516,3114.6,3113.9,0.90398445]
[1767891161626,3.53975563,3115.0,3113.9,0.90398445]
[1767891161627,3.21027287,3115.0,3113.9,0.90398445]
[1767891161800,0.842,3114.9,3113.9,0.90398445]
[1767891162006,3.21058207,3114.7,3113.9,0.90398445]
[1767891162726,0.40924013,3114.8,3114.0,0.90398445]
[1767891162727,3.65989143,3114.8,3114.0,0.90398445]
[1767891162930,6.87041175,3114.8,3113.7,0.90498445]
[1767891163247,6.87041175,3114.8,3114.0,0.90398445]
[1767891163248,3.61976045,3114.8,3114.0,0.90398445]
[1767891163406,3.20952679,3115.8,3114.0,0.90398445]
[1767891163595,7.38975745,3115.9,3114.0,0.90398445]
[1767891163596,0.04011939,3115.7,3114.0,0.90398445]
[1767891163923,0.842,3115.6,3114.2,0.90398445]
[1767891164116,3.20975766,3115.5,3114.4,0.90398445]
[1767891164318,0.73016092,3115.4,3114.5,0.90398445]
[1767891164832,0.77028417,3115.4,3114.5,0.90398445]
[1767891165724,3.20969757,3115.6,3114.5,0.90398445]
[1767891166110,6.41918174,3115.7,3114.7,0.90398445]
[1767891166315,4.05146583,3115.8,3114.7,0.90398445]
[1767891168127,4.05146583,3115.8,3114.9,0.90398445]
[1767891168829,0.002,3116.1,3114.9,0.90398445]
[1767891168999,0.002,3116.1,3115.1,0.90398445]
[1767891169916,3.21115159,3116.1,3115.1,0.90398445]
[1767891170134,0.002,3116.1,3115.3,0.90398445]
[1767891172105,0.002,3116.1,3115.0,0.90398445]
[1767891172327,0.04211424,3116.1,3115.0,0.90398445]
[1767891172530,0.96692242,3116.0,3115.0,0.90398445]
[1767891172710,0.04011682,3115.9,3115.0,0.90398445]
[1767891173127,0.04011682,3115.9,3114.7,0.90398445]
[1767891174236,3.20944861,3115.8,3114.9,0.90398445]
[1767891175756,0.96692242,3116.0,3114.9,0.90398445]
[1767891175965,3.21114548,3116.1,3114.9,0.90398445]
[1767891176472,0.002,3116.1,3115.1,0.90398445]
[1767891176826,0.04011553,3116.0,3115.1,0.90398445]
[1767891177657,0.002,3116.1,3115.1,0.90398445]
[1767891178550,0.002,3115.8,3115.3,0.90398445]
[1767891178758,0.002,3115.8,3115.4,0.90398445]
[1767891179075,0.002,3115.8,3114.7,0.90398445]
[1767891179235,0.002,3115.8,3113.8,3.29539661]
[1767891179236,0.002,3115.8,3114.8,4.11440303]
[1767891179560,0.002,3115.8,3114.8,0.90398445]
[1767891179733,0.0421181,3115.8,3114.8,0.90398445]
[1767891180452,7.39016947,3115.7,3114.4,0.90398445]
[1767891180655,0.97106623,3115.5,3114.4,0.90398445]
[1767891180966,0.04012325,3115.4,3114.4,4.11485615]
[1767891181186,0.04012325,3115.4,3114.4,0.90398445]
[1767891181187,0.04012454,3115.3,3114.4,0.90398445]
[1767891181385,0.04012454,3115.3,3114.1,0.90498445]
[1767891181536,0.04012454,3115.3,3114.1,4.11608252]
[1767891181730,0.04012454,3115.3,3114.1,4.52769077]
[1767891181930,0.04012454,3115.3,3114.1,1.3165927]
[1767891182132,1.01119077,3115.3,3114.1,0.90498445]
[1767891182783,9.63020028,3115.2,3114.1,0.90498445]
[1767891182934,9.63020028,3115.2,3114.1,0.001]
[1767891182935,0.93487523,3115.1,3114.1,0.001]
[1767891184769,6.42054574,3115.0,3114.1,0.001]
[1767891184969,0.842,3114.9,3114.1,0.001]
[1767891185196,0.72625457,3114.8,3114.1,0.001]
[1767891187001,6.42116414,3114.7,3114.1,0.001]
[1767891188169,3.21058207,3114.7,3114.1,0.001]
[1767891188383,3.93675638,3114.8,3114.1,0.001]
[1767891188578,7.26300362,3114.8,3114.1,0.90632906]
[1767891188997,7.26300362,3114.8,3114.1,0.001]
[1767891189612,7.26300362,3114.8,3113.7,0.90632906]
[1767891189782,6.42100362,3114.8,3113.7,0.90632906]
[1767891189984,6.42100362,3114.8,3113.8,0.90532906]
[1767891189985,0.842,3114.7,3113.8,0.90532906]
[1767891190310,0.72630036,3114.6,3113.8,0.90532906]
[1767891191012,1.56830036,3114.6,3114.4,0.001]
[1767891191211,1.56830036,3114.6,3113.8,0.90532906]
[1767891191212,3.21078824,3114.5,3113.8,0.90532906]
[1767891192876,7.26233962,3115.1,3113.9,0.90532906]
[1767891193076,0.88212841,3115.0,3113.9,0.90532906]
[1767891193313,3.210479,3114.8,3114.0,0.90532906]
[1767891193625,0.7302468,3114.9,3114.0,0.90532906]
[1767891193774,3.21027287,3115.0,3114.0,0.90532906]
[1767891194413,3.21027287,3115.0,3114.0,0.92280221]
[1767891194779,7.26226676,3115.2,3114.0,0.90532906]
[1767891195374,7.26226676,3115.2,3114.1,0.90532906]
[1767891195703,1.79471655,3115.1,3114.1,0.90532906]
[1767891196101,1.79471655,3115.1,3113.8,0.90532906]
[1767891196102,0.93487523,3115.0,3113.8,0.90532906]
[1767891196275,0.93487523,3114.8,3113.8,0.90532906]
[1767891196484,0.842,3114.7,3113.8,4.11677523]
[1767891196882,0.842,3114.7,3113.8,0.90532906]
[1767891197087,0.18170062,3114.6,3113.8,0.90532906]
[1767891197287,3.39239215,3114.6,3113.8,4.11681161]
[1767891197688,3.39239215,3114.6,3113.8,0.90532906]
[1767891197894,0.18170062,3114.6,3113.8,4.11682534]
[1767891198106,3.3923998,3114.6,3113.7,0.001]
[1767891198385,0.5169275,3114.5,3113.7,0.90632906]
[1767891198692,0.5169275,3114.5,3113.8,3.21147866]
[1767891198887,0.18170062,3114.6,3113.8,4.11680772]
[1767891199477,3.39240323,3114.6,3113.8,0.90532906]
[1767891199909,7.53798107,3114.6,3113.7,0.001]
[1767891200122,0.97501008,3114.5,3113.7,0.001]
[1767891200318,0.97501008,3114.5,3113.2,0.001]
[1767891200319,0.93487523,3114.3,3113.2,0.001]
[1767891200621,3.53975563,3114.4,3113.2,0.001]
[1767891200622,0.93487523,3114.1,3113.2,0.001]
[1767891201129,0.93487523,3113.9,3112.5,3.21278077]
[1767891201415,1.07888185,3114.4,3112.7,4.11795569]
[1767891201416,7.39487523,3113.8,3112.7,4.11795569]
[1767891201592,3.21161319,3113.7,3112.7,4.11795569]
[1767891201912,1.05136132,3113.6,3112.7,4.11795569]
[1767891202316,1.05136132,3113.6,3112.7,0.90532906]
[1767891203320,1.05136132,3113.6,3112.7,4.1179574]
[1767891203510,3.21181949,3113.5,3112.5,3.21279385]
[1767891203711,6.42363898,3113.5,3112.4,0.90532906]
[1767891204026,0.74750003,3113.4,3112.4,0.90532906]
[1767891204524,0.74750003,3113.4,3112.5,0.90532906]
[1767891205021,0.74750003,3113.4,3112.7,0.90532906]
[1767891205228,5.1051164,3113.6,3112.8,0.90532906]
[1767891205591,6.46,3113.8,3112.9,0.92283461]
[1767891206827,3.21109755,3114.2,3112.9,0.90532906]
[1767891207027,3.21109755,3114.2,3112.9,0.92283158]
[1767891207232,3.25123626,3114.2,3112.9,0.90532906]
[1767891207528,6.46233381,3114.2,3112.9,0.90532906]
[1767891207692,8.00000419,3114.2,3113.1,0.90532906]
[1767891207898,4.78890664,3114.2,3113.1,0.90532906]
[1767891208095,4.82904535,3114.2,3113.1,0.90532906]
[1767891208337,8.0401429,3114.2,3113.1,0.90532906]
[1767891208537,8.00000419,3114.2,3113.1,0.90532906]
[1767891208730,1.53020042,3114.1,3113.2,0.90532906]
[1767891208938,2.46507565,3114.1,3113.1,0.66001803]
[1767891209618,2.46507565,3114.1,3113.2,3.21212899]
[1767891209817,6.46,3114.3,3113.3,0.95741027]
[1767891210022,9.67104283,3114.3,3113.3,0.97490146]
[1767891210238,12.88208566,3114.3,3113.3,0.95741027]
[1767891210550,0.94625795,3114.2,3113.1,0.66001803]
[1767891210837,0.94625795,3114.2,3113.0,0.95741027]
[1767891210997,0.94625795,3114.2,3112.6,0.95741027]
[1767891211324,0.90611924,3114.2,3112.9,3.21242864]
[1767891211506,0.90611924,3114.2,3112.9,4.16979334]
[1767891211702,6.42260756,3114.0,3112.9,0.95741027]
[1767891211926,0.88214258,3113.9,3112.9,0.95741027]
[1767891212132,0.88214258,3113.9,3112.6,4.17012813]
[1767891212133,0.90611924,3113.8,3112.6,4.17012813]
[1767891212327,0.90611924,3113.8,3112.7,4.20129328]
[1767891212500,0.21897134,3113.7,3112.8,0.98872994]
[1767891212702,0.04014516,3113.7,3112.8,0.98872994]
[1767891213436,0.04014516,3113.7,3112.5,0.98872994]
[1767891213638,0.04014645,3113.6,3112.5,0.98872994]
[1767891213804,6.42363898,3113.5,3112.5,0.98872994]
[1767891214157,3.21181949,3113.5,3112.5,0.98872994]
[1767891214332,0.32118195,3113.4,3112.6,0.98872994]
[1767891215731,0.842,3114.1,3112.6,1.00624121]
[1767891215899,6.42260756,3114.0,3112.8,0.98872994]
[1767891216404,7.26460756,3114.0,3112.8,0.98872994]
[1767891218131,7.26460756,3114.0,3112.9,3.21243856]
[1767891218338,7.26460756,3114.0,3113.0,0.98872994]
[1767891218544,0.002,3113.3,3113.0,0.98872994]
[1767891219232,0.002,3113.6,3113.1,0.01750544]
[1767891219435,0.002,3113.6,3113.0,0.98872994]
[1767891219636,0.002,3113.6,3113.1,0.01750241]
[1767891219810,0.002,3113.6,3113.2,0.98872994]
[1767891220520,0.002,3113.6,3113.2,4.20077503]
[1767891220836,0.002,3113.6,3113.3,0.98872994]
[1767891223327,6.42229632,3114.2,3113.3,0.98872994]
[1767891224043,7.34549638,3114.2,3113.3,0.98872994]
[1767891224218,1.50488964,3114.1,3113.0,0.98872994]
[1767891224422,6.42260756,3114.0,3113.0,0.98872994]
[1767891224619,0.04014258,3113.9,3113.0,0.98872994]
[1767891225135,3.21130378,3114.0,3113.1,0.98872994]
[1767891225445,4.67600348,3114.1,3113.1,0.98872994]
[1767891226021,7.88725732,3114.1,3113.1,0.98872994]
[1767891226456,0.88104574,3114.0,3113.1,0.98872994]
[1767891226750,3.21140691,3113.9,3113.1,0.98872994]
[1767891226970,0.04014387,3113.8,3113.1,0.98872994]
[1767891228420,3.25154949,3113.9,3113.1,0.98872994]
[1767891228650,6.4629564,3113.9,3113.1,0.98872994]
[1767891228852,0.73440021,3113.8,3113.1,0.98872994]
[1767891230255,0.73440021,3113.8,3112.9,0.98872994]
[1767891230256,0.04014516,3113.7,3112.9,0.98872994]
[1767891230752,0.96334522,3113.7,3112.8,0.001]
[1767891231118,7.34663274,3113.6,3112.8,0.001]
[1767891231317,0.9633478,3113.5,3112.8,0.001]
[1767891231538,0.73867805,3113.4,3112.8,0.001]
[1767891231944,0.73867805,3113.4,3113.1,0.001]
[1767891232852,0.73867805,3113.4,3112.8,0.001]
[1767891233049,3.21202582,3113.3,3112.8,0.001]
[1767891233425,6.42405164,3113.3,3112.8,0.001]
[1767891233752,0.71627297,3113.2,3112.8,0.001]
[1767891235257,3.21177779,3113.6,3112.8,0.98972994]
[1767891235426,0.002,3113.7,3113.0,0.98872994]
[1767891236323,3.21363534,3113.7,3113.0,0.98872994]
[1767891236519,3.21363534,3113.7,3112.8,0.98972994]
[1767891236734,0.002,3113.7,3112.8,1.17465336]
[1767891237225,0.002,3113.7,3113.0,0.98872994]
[1767891238341,0.002,3113.7,3112.8,1.17465336]
[1767891238733,0.04214516,3113.7,3112.8,0.98972994]
[1767891238919,0.96534522,3113.7,3112.8,0.001]
[1767891239361,7.34663274,3113.6,3112.8,0.001]
[1767891239653,0.92320006,3113.5,3112.5,4.20154932]
[1767891239955,0.842,3113.4,3112.5,0.98872994]
[1767891240123,0.17652001,3113.3,3112.5,0.98872994]
[1767891240559,1.09972007,3113.3,3112.0,0.98872994]
[1767891240731,0.04015161,3113.2,3112.2,3.2131457]
[1767891240923,0.04015161,3113.2,3112.2,4.20187564]
[1767891241124,1.13987039,3113.3,3112.2,4.20187564]
[1767891241453,1.13987039,3113.3,3112.3,0.98872994]
[1767891241454,3.21223218,3113.1,3112.3,0.98872994]
[1767891242152,0.19818704,3113.2,3112.4,0.98872994]
[1767891242353,0.002,3113.7,3112.5,0.99601988]
[1767891242552,0.002,3113.7,3112.7,0.99601988]
[1767891242753,3.21364448,3113.7,3112.7,0.99601988]
[1767891242928,3.21364448,3113.7,3113.2,0.01868487]
[1767891243127,3.2136532,3113.7,3113.2,0.01868487]
[1767891243322,3.53312194,3113.6,3113.2,0.01868487]
[1767891243551,0.32136532,3113.6,3113.2,0.01868487]
[1767891245247,0.002,3113.7,3113.2,0.01868487]
[1767891245763,0.04214516,3113.7,3113.2,0.01868487]
[1767891245931,0.002,3113.7,3113.2,0.01868487]
[1767891246132,0.04014645,3113.6,3113.2,0.01868487]
[1767891246449,0.04014645,3113.6,3112.6,0.99601988]
[1767891246828,0.04014645,3113.6,3112.6,4.20876448]
[1767891247132,0.96188607,3113.7,3112.1,0.99601988]
[1767891247335,0.95988607,3113.5,3112.1,0.99601988]
[1767891247562,4.05392265,3113.4,3112.3,0.99601988]
[1767891247757,4.05392265,3113.4,3113.1,0.001]
[1767891247932,7.2658453,3113.4,3112.6,0.99601988]
[1767891248132,0.002,3113.3,3112.6,0.99601988]
[1767891248542,0.002,3113.3,3112.8,0.99601988]
[1767891249634,0.002,3113.3,3113.0,0.99601988]
[1767891251684,6.30116073,3113.6,3113.1,4.20825206]
[1767891251865,6.30116073,3113.6,3113.1,7.42048424]
[1767891252066,6.30116073,3113.6,3113.1,4.20825206]
[1767891252255,6.30116073,3113.6,3113.0,3.95442987]
[1767891252256,6.30116073,3113.6,3113.0,3.95439554]
[1767891252647,6.30116073,3113.6,3113.0,7.1667309]
[1767891252846,6.30116073,3113.6,3113.1,0.46704363]
[1767891253659,6.30116073,3113.6,3113.1,3.67919233]
[1767891254036,6.30116073,3113.6,3113.2,0.99601988]
[1767891255775,0.002,3113.6,3113.3,0.99601988]
[1767891256565,0.002,3113.6,3113.1,0.99601988]
[1767891257369,3.85646688,3113.6,3113.1,0.99601988]
[1767891257569,0.64472674,3113.6,3113.1,0.99601988]
[1767891259266,3.85645589,3113.6,3113.1,0.99601988]
[1767891259973,7.06818504,3113.6,3112.7,0.99601988]
[1767891260145,7.91018504,3113.6,3112.7,0.99601988]
[1767891260346,0.7912185,3113.5,3112.7,0.99601988]
[1767891260745,0.7912185,3113.5,3113.0,0.99601988]
[1767891261950,4.00306148,3113.5,3113.0,0.99601988]
[1767891262150,0.002,3113.3,3113.0,0.99601988]
[1767891263446,0.002,3113.3,3112.9,0.001]
[1767891263645,0.002,3113.3,3112.9,0.97932096]
[1767891266181,0.002,3113.3,3112.9,0.001]
[1767891266552,0.002,3113.3,3112.9,0.97932096]
[1767891267270,0.002,3113.3,3112.9,0.001]
[1767891267778,0.002,3113.3,3112.9,0.97932096]
[1767891268967,0.002,3113.3,3112.9,0.001]
[1767891269284,0.002,3113.3,3112.9,0.97932096]
[1767891272456,0.002,3113.3,3112.9,0.001]
[1767891272655,0.002,3113.3,3112.9,0.95237641]
[1767891273061,6.29916073,3113.8,3113.3,0.95137641]
[1767891273460,3.21079929,3114.5,3113.3,0.95137641]
[1767891273663,0.843,3114.5,3113.3,0.95137641]
[1767891274217,3.21104848,3114.3,3113.3,0.95137641]
[1767891274573,0.04013743,3114.3,3113.3,0.95137641]
[1767891274765,3.21109755,3114.2,3113.3,0.95137641]
[1767891275808,6.4221951,3114.2,3113.3,0.95137641]
[1767891276101,0.843,3114.5,3113.3,0.95137641]
[1767891276276,0.91514886,3115.0,3113.9,0.95137641]
[1767891276600,2.89062684,3114.6,3113.9,0.95137641]
[1767891276778,6.10138145,3114.6,3113.9,0.95137641]
[1767891277482,2.89062684,3114.4,3113.2,2.89162684]
[1767891277692,2.89062684,3114.2,3113.3,0.95137641]
[1767891277998,0.842,3114.6,3113.9,0.95137641]
[1767891278910,3.73262684,3114.6,3113.9,0.95137641]
[1767891279109,6.10132723,3114.6,3113.9,0.95137641]
[1767891281004,2.89062684,3114.4,3113.9,0.95137641]
[1767891281207,2.89062684,3114.4,3113.6,0.95137641]
[1767891281512,3.30061318,3114.4,3113.6,0.95137641]
[1767891281889,3.30061318,3114.4,3113.2,0.001]
[1767891281890,2.89062684,3113.8,3113.2,0.001]
[1767891282196,2.89062684,3113.8,3113.2,0.95237641]
[1767891283598,2.89062684,3113.9,3113.2,0.95237641]
[1767891283783,4.45185612,3113.9,3113.2,0.95237641]
[1767891284186,1.56122928,3113.9,3113.2,0.95237641]
[1767891285183,6.29916073,3114.1,3113.4,0.95137641]
[1767891285890,9.18978757,3114.1,3113.4,0.95137641]
[1767891286483,12.401002,3114.1,3113.4,0.95137641]
[1767891287110,12.401002,3114.1,3113.7,0.001]
[1767891287426,0.001,3113.7,3113.2,0.001]
[1767891289620,0.001,3113.7,3113.2,0.95237641]
[1767891290008,6.13632244,3114.1,3113.5,0.95137641]
[1767891290190,6.74995468,3114.1,3113.5,0.95137641]
[1767891290382,6.13632244,3114.1,3113.5,0.95137641]
[1767891291921,9.34753726,3114.1,3113.5,0.95137641]
[1767891292086,0.04014129,3114.0,3113.3,4.15087019]
[1767891292414,6.13632244,3114.1,3113.3,4.15087019]
[1767891292415,6.13632244,3114.1,3113.3,0.93884687]
[1767891292916,6.13632244,3114.1,3113.3,4.15078198]
[1767891293090,9.34753719,3114.1,3113.3,4.15078198]
[1767891293302,0.04014129,3114.0,3113.3,0.93884687]
[1767891293730,0.04014129,3114.0,3113.2,0.001]
[1767891294044,3.21140691,3113.9,3113.2,0.001]
[1767891294589,2.89062684,3113.8,3113.2,0.001]
[1767891294822,6.4629564,3113.9,3113.2,0.001]
[1767891294823,0.93535832,3113.7,3113.2,0.93984687]
[1767891295125,3.21135728,3114.0,3113.2,0.93984687]
[1767891295305,6.42271456,3114.0,3113.2,0.93984687]
[1767891295825,3.21135728,3114.0,3113.2,0.93984687]
[1767891297091,10.18952356,3114.1,3113.2,0.93984687]
[1767891297092,10.18955555,3114.1,3113.4,0.93884687]
[1767891297291,1.01895556,3114.0,3113.4,0.93884687]
[1767891297526,6.13632244,3114.1,3113.6,0.93884687]
[1767891297734,6.13632244,3114.1,3113.8,0.93884687]
[1767891299205,6.13632244,3114.1,3113.7,0.93884687]
[1767891299401,6.13632244,3114.1,3113.6,3.21169864]
[1767891299402,0.92671441,3115.2,3114.0,0.93884687]
[1767891299725,3.21016981,3115.1,3114.1,3.82947371]
[1767891299912,3.21016981,3115.1,3114.1,0.93884687]
[1767891299913,0.78695111,3115.0,3114.1,0.93884687]
[1767891300115,3.99731083,3115.0,3114.1,0.93884687]
[1767891300319,10.45731083,3115.0,3114.1,7.0406677]
[1767891300635,10.45731083,3115.0,3114.3,3.82947371]
[1767891300925,10.45731083,3115.0,3114.3,0.93884687]
[1767891301126,1.36675157,3114.9,3114.3,0.93884687]
[1767891302491,4.57715912,3114.9,3114.3,0.93884687]
[1767891303095,1.36675157,3114.9,3114.3,0.93884687]
[1767891303332,6.46,3115.0,3114.5,3.81684782]
[1767891303528,9.67030267,3115.0,3114.5,0.92622098]
[1767891303954,12.88060534,3115.0,3114.2,0.92622098]
[1767891304232,2.89062684,3114.8,3113.8,0.92622098]
[1767891304449,0.04012969,3114.9,3114.0,0.92622098]
[1767891304450,3.21042067,3114.9,3114.0,0.92622098]
[1767891304620,10.66575044,3115.0,3114.0,1.02398366]
[1767891304816,0.002,3115.3,3114.9,2.89062684]
[1767891305122,0.002,3115.3,3114.9,3.81684782]
[1767891305329,0.002,3115.3,3114.9,0.92622098]
[1767891305757,0.002,3115.3,3114.7,2.89062684]
[1767891306051,0.002,3115.3,3114.9,2.89062684]
[1767891306655,0.002,3115.3,3114.8,0.92622098]
[1767891306858,0.002,3115.3,3114.4,7.02766034]
[1767891307156,0.002,3115.3,3114.5,0.92622098]
[1767891307834,0.002,3115.3,3114.6,0.92622098]
[1767891308638,0.002,3115.3,3114.3,3.73262684]
[1767891308639,2.89062684,3115.0,3114.3,0.92622098]
[1767891308841,2.89062684,3115.0,3113.5,3.21274342]
[1767891308842,0.32919237,3114.9,3114.0,0.92622098]
[1767891309321,2.89062684,3114.6,3113.7,0.92622098]
[1767891309526,2.89062684,3114.8,3113.7,0.92622098]
[1767891309729,0.32919237,3114.9,3113.9,0.92622098]
[1767891310046,0.04012969,3114.9,3113.9,0.92622098]
[1767891310527,3.21037593,3114.9,3114.0,0.92622098]
[1767891310727,6.42075186,3114.9,3114.0,0.92622098]
[1767891311154,7.26275186,3114.9,3114.0,0.92622098]
[1767891311457,6.42075186,3114.9,3114.0,0.92622098]
[1767891311641,7.26275186,3114.9,3114.0,0.92622098]
[1767891311953,7.98902705,3114.9,3114.1,0.001]
[1767891313459,0.04013098,3114.8,3114.1,0.001]
[1767891314438,4.77865112,3114.9,3114.1,0.001]
[1767891314636,0.002,3115.0,3114.1,0.9167167]
[1767891314836,0.002,3115.0,3114.3,0.9157167]
[1767891314837,3.21231384,3115.0,3114.3,0.9157167]
[1767891315339,0.002,3115.0,3114.3,0.9157167]
[1767891317174,0.002,3115.0,3114.1,0.001]
[1767891317356,6.42075186,3114.9,3114.1,0.001]
[1767891317533,0.74237473,3114.8,3114.1,0.001]
[1767891319771,3.95289992,3114.8,3114.1,0.001]
[1767891320584,0.04013227,3114.7,3114.1,0.001]
[1767891320938,1.00099933,3114.7,3113.5,3.21278383]
[1767891321173,1.00099933,3114.7,3113.5,4.12850053]
[1767891321348,2.13849429,3114.7,3113.6,0.49705005]
[1767891321566,0.96086706,3114.5,3113.5,0.001]
[1767891321861,0.96086706,3114.3,3113.5,0.001]
[1767891322165,3.21089134,3114.4,3113.5,0.001]
[1767891322369,6.42178268,3114.4,3113.5,0.001]
[1767891322665,7.24424765,3114.4,3113.5,0.001]
[1767891323176,8.20511471,3114.4,3113.5,0.001]
[1767891323835,4.99422337,3114.4,3113.5,0.001]
[1767891325042,8.24525085,3114.4,3113.5,0.001]
[1767891325256,8.20511471,3114.4,3113.5,0.001]
[1767891325573,1.14159481,3114.3,3113.5,0.9167167]
[1767891325774,3.21078824,3114.5,3113.8,0.001]
[1767891325939,12.88157648,3114.5,3113.8,0.001]
[1767891326135,12.88357648,3114.5,3113.8,0.001]
[1767891326568,9.67278824,3114.5,3113.8,0.001]
[1767891326782,7.304,3114.5,3113.8,0.001]
[1767891327067,8.35547363,3114.5,3113.8,0.001]
[1767891327276,0.96086706,3114.4,3113.8,0.001]
[1767891327464,8.35547363,3114.5,3113.8,0.001]
[1767891328079,3.21089134,3114.4,3113.8,0.001]
[1767891328260,6.42178268,3114.4,3113.8,0.001]
[1767891328442,7.89950831,3114.4,3113.8,0.001]
[1767891328642,0.04013743,3114.3,3113.8,0.001]
[1767891328869,5.64948403,3114.4,3113.8,0.001]
[1767891329042,7.89950831,3114.4,3113.8,0.001]
[1767891329641,8.86037537,3114.4,3113.8,0.001]
[1767891329944,2.72258939,3114.3,3113.8,0.001]
[1767891330176,2.72258939,3114.3,3113.5,0.001]
[1767891330177,0.96086706,3114.1,3113.5,0.001]
[1767891330354,0.96086706,3114.1,3113.2,0.001]
[1767891330355,0.96086706,3113.9,3113.2,0.001]
[1767891330682,0.04014,3114.1,3113.2,0.9167167]
[1767891330683,0.842,3114.1,3113.2,0.9167167]
[1767891330880,0.88214,3114.1,3113.2,0.9167167]
[1767891331050,1.88081871,3114.1,3113.2,0.001]
[1767891331251,2.84168577,3114.1,3113.2,0.001]
[1767891331755,2.80154577,3114.1,3113.2,0.001]
[1767891332584,3.21130378,3114.0,3113.2,0.001]
[1767891332883,6.42260756,3114.0,3113.2,0.001]
[1767891333082,3.21130378,3114.0,3113.2,0.001]
[1767891333650,6.42260756,3114.0,3113.2,0.90957488]
[1767891334251,1.84067871,3114.1,3113.2,0.90957488]
[1767891334252,5.05193167,3114.1,3113.2,0.90957488]
[1767891334468,0.08594408,3114.5,3113.3,0.92606911]
[1767891334469,0.002,3114.5,3113.3,0.92606911]
[1767891334795,0.002,3114.5,3113.5,0.90857488]
[1767891335505,0.002,3114.5,3113.7,0.90857488]
[1767891335685,0.002,3114.5,3113.9,0.90857488]
[1767891335882,0.002,3114.5,3114.1,0.90857488]
[1767891337068,0.002,3114.5,3114.0,0.17505749]
[1767891337273,0.002,3114.5,3114.0,3.38629623]
[1767891337776,0.002,3114.5,3114.0,0.17505749]
[1767891337986,0.002,3114.5,3113.6,3.21169431]
[1767891338173,0.002,3114.5,3113.7,0.90857488]
[1767891338375,0.002,3114.5,3113.7,4.1201459]
[1767891339007,0.002,3114.5,3113.3,4.12052051]
[1767891339178,0.002,3114.5,3113.3,0.90857488]
[1767891339378,0.002,3114.5,3113.2,0.01848974]
[1767891339379,0.04013614,3114.4,3113.4,0.90857488]
[1767891340102,0.04013614,3114.4,3114.0,0.001]
[1767891340310,0.04013614,3114.4,3113.4,0.90857488]
[1767891341295,3.21099444,3114.3,3113.4,0.90857488]
[1767891341608,0.64434097,3114.5,3113.5,0.90857488]
[1767891341796,0.002,3114.5,3113.5,0.90857488]
[1767891341998,0.002,3114.5,3113.7,0.90857488]
[1767891342308,0.002,3114.5,3113.9,0.90857488]
[1767891343517,0.002,3114.5,3114.0,0.90857488]
[1767891344306,0.002,3114.8,3113.9,6.42280354]
[1767891344307,0.002,3114.8,3114.4,0.90857488]
[1767891346099,0.002,3114.8,3114.4,4.11943397]
[1767891346304,0.002,3114.8,3114.4,4.53140062]
[1767891347311,0.002,3115.3,3114.8,0.90857488]